fUST/lending_fUST_20250701
["ID","MTS","AMOUNT","RATE_DAILY","PERIOD"]
[368786784,1751367041514,-460.0,0.00017968,2]
[368786786,1751367041523,-460.0,0.00017968,2]
[368786788,1751367041534,-460.0,0.00017969,2]
[368786790,1751367041543,-460.0,0.00017969,2]
[368786792,1751367041553,-460.0,0.00017969,2]
[368786794,1751367041562,-460.0,0.00017969,2]
[368786796,1751367041571,-460.0,0.00017969,2]
[368786798,1751367041581,-460.0,0.00017969,2]
[368786800,1751367041590,-460.0,0.00017969,2]
[368786802,1751367041599,-460.0,0.00017969,2]
[368786804,1751367041609,-460.0,0.00017969,2]
[368786806,1751367041618,-460.0,0.00017969,2]
[368786808,1751367041628,-460.0,0.00017969,2]
[368786810,1751367041638,-460.0,0.00017969,2]
[368786812,1751367041646,-460.0,0.00017969,2]
[368786814,1751367041656,-460.0,0.00017969,2]
[368786816,1751367041665,-460.0,0.00017969,2]
[368786818,1751367041674,-460.0,0.00017969,2]
[368786820,1751367041683,-460.0,0.00017969,2]
[368786822,1751367041692,-460.0,0.00017969,2]
[368786824,1751367041701,-460.0,0.00017969,2]
[368786826,1751367041710,-950.54,0.00017969,2]
[368786828,1751367041719,-460.0,0.00017969,2]
[368786830,1751367041729,-460.0,0.00017969,2]
[368786832,1751367041738,-460.0,0.00017969,2]
[368786833,1751367041747,-566.04,0.00017969,2]
[368786836,1751367041757,-2067.87134883,0.00018141,2]
[368786838,1751367041766,-2281.20882434,0.00018159,2]
[368786840,1751367041776,-460.0,0.00018207,2]
[368786841,1751367041786,-1000.0,0.00018221,2]
[368786843,1751367041795,-683.93,0.00018241,2]
[368786846,1751367041806,-626.22,0.00018241,2]
[368786848,1751367041815,-311.09,0.00018241,2]
[368786850,1751367041825,-460.0,0.00018241,2]
[368786862,1751367041929,-504.45,0.00018241,2]
[368786864,1751367041940,-460.0,0.00018241,2]
[368786866,1751367041950,-460.0,0.00018241,2]
[368786868,1751367041960,-394.7,0.00018241,2]
[368786870,1751367041970,-460.0,0.00018241,2]
[368786872,1751367041980,-712.93,0.00018241,2]
[368786874,1751367041989,-460.0,0.00018241,2]
[368786876,1751367041998,-460.0,0.00018242,2]
[368786878,1751367042008,-460.0,0.00018242,2]
[368786880,1751367042018,-460.0,0.00018242,2]
[368786882,1751367042028,-580.25,0.00018242,2]
[368786884,1751367042037,-509.18,0.00018242,2]
[368786886,1751367042047,-535.46,0.00018242,2]
[368786888,1751367042056,-460.0,0.00018242,2]
[368786890,1751367042066,-460.0,0.00018242,2]
[368786892,1751367042077,-243.37,0.00018242,2]
[368786894,1751367042089,-460.0,0.00018242,2]
[368786896,1751367042099,-460.0,0.00018242,2]
[368786898,1751367042109,-460.0,0.00018242,2]
[368786900,1751367042119,-460.0,0.00018242,2]
[368786902,1751367042132,-460.0,0.00018242,2]
[368786904,1751367042143,-324.76266146,0.00018243,2]
[368786906,1751367042155,-357.15,0.00018243,2]
[368786908,1751367042165,-426.05338779,0.00018243,2]
[368786910,1751367042175,-460.0,0.00018243,2]
[368786912,1751367042188,-460.0,0.00018243,2]
[368786914,1751367042199,-460.0,0.00018243,2]
[368786916,1751367042209,-492.6,0.00018243,2]
[368786918,1751367042218,-950.54,0.00018243,2]
[368786920,1751367042228,-460.0,0.00018243,2]
[368786922,1751367042237,-460.0,0.00018481,2]
[368786924,1751367042247,-683.93,0.00018515,2]
[368786926,1751367042258,-626.22,0.00018515,2]
[368786928,1751367042267,-460.0,0.00018515,2]
[368786930,1751367042277,-504.45,0.00018515,2]
[368786932,1751367042286,-460.0,0.00018515,2]
[368786934,1751367042296,-460.0,0.00018515,2]
[368786936,1751367042305,-460.0,0.00018515,2]
[368786938,1751367042314,-712.93,0.00018515,2]
[368786940,1751367042324,-532.89,0.00018515,2]
[368786941,1751367042333,-509.51,0.00018516,2]
[368786943,1751367042342,-460.0,0.00018516,2]
[368786945,1751367042351,-580.25,0.00018516,2]
[368786947,1751367042361,-460.0,0.00018516,2]
[368786949,1751367042373,-233.0,0.00018516,2]
[368786951,1751367042381,-460.0,0.00018516,2]
[368786953,1751367042391,-460.0,0.00018516,2]
[368786955,1751367042401,-280.57,0.00018516,2]
[368786957,1751367042411,-488.8,0.00018516,2]
[368786959,1751367042420,-460.0,0.00018516,2]
[368786961,1751367042430,-460.0,0.00018517,2]
[368786963,1751367042440,-460.0,0.00018517,2]
[368786965,1751367042450,-460.0,0.00018517,2]
[368786967,1751367042461,-950.54,0.00018517,2]
[368786969,1751367042472,-460.0,0.00018517,2]
[368786971,1751367042481,-1450.29037334,0.00018639,2]
[368786973,1751367042490,-60000.0,0.0001866,2]
[368786974,1751367042499,-207.4,0.00018695,2]
[368786975,1751367042509,-5000.0,0.00018695,2]
[368786976,1751367042518,-500.0,0.00018695,2]
[368786977,1751367042528,-500.0,0.00018695,2]
[368786978,1751367042536,-690.642,0.00018695,2]
[368786979,1751367042545,-500.0,0.00018695,2]
[368786980,1751367042554,-500.0,0.00018695,2]
[368786981,1751367042563,-500.0,0.00018695,2]
[368786982,1751367042573,-500.0,0.00018695,2]
[368786984,1751367042582,-500.0,0.00018695,2]
[368786985,1751367042591,-500.0,0.00018695,2]
[368786986,1751367042601,-500.0,0.00018695,2]
[368786988,1751367042610,-500.0,0.00018695,2]
[368786989,1751367042619,-500.0,0.00018695,2]
[368786991,1751367042628,-500.0,0.00018695,2]
[368786992,1751367042637,-500.0,0.00018695,2]
[368786993,1751367042646,-500.0,0.00018695,2]
[368786994,1751367042655,-500.0,0.00018695,2]
[368786995,1751367042665,-151.0,0.00018695,2]
[368786996,1751367042674,-500.0,0.00018695,2]
[368786998,1751367042683,-500.0,0.00018695,2]
[368786999,1751367042693,-298.60925501,0.00018695,2]
[368787001,1751367042701,-500.0,0.00018695,2]
[368787003,1751367042711,-500.0,0.00018695,2]
[368787005,1751367042720,-500.0,0.00018695,2]
[368787007,1751367042729,-500.0,0.00018695,2]
[368787010,1751367042738,-500.0,0.00018695,2]
[368787013,1751367042748,-500.0,0.00018695,2]
[368787015,1751367042758,-500.0,0.00018695,2]
[368787018,1751367042767,-500.0,0.00018695,2]
[368787021,1751367042776,-500.0,0.00018695,2]
[368787024,1751367042786,-500.0,0.00018695,2]
[368787027,1751367042796,-561.88688042,0.00018695,2]
[368787030,1751367042805,-25000.0,0.00018695,2]
[368787032,1751367042815,-18747.68382911,0.00018695,2]
[368787035,1751367042824,-502.47724734,0.00018732,2]
[368787038,1751367042833,-500.78030379,0.00018732,2]
[368787041,1751367042842,-500.0,0.00018732,2]
[368787044,1751367042852,-501.61816801,0.00018732,2]
[368787047,1751367042860,-500.0,0.00018732,2]
[368787050,1751367042870,-716.195754,0.0001875,2]
[368787053,1751367042879,-460.0,0.00018755,2]
[368787056,1751367042889,-1500.0,0.00018768,2]
[368787059,1751367042898,-683.93,0.00018789,2]
[368787062,1751367042908,-626.22,0.00018789,2]
[368787064,1751367042917,-460.0,0.00018789,2]
[368787066,1751367042927,-504.45,0.00018789,2]
[368787068,1751367042936,-460.0,0.00018789,2]
[368787070,1751367042945,-460.0,0.00018789,2]
[368787072,1751367042954,-460.0,0.00018789,2]
[368787074,1751367042965,-712.93,0.00018789,2]
[368787077,1751367042974,-460.0,0.0001879,2]
[368787079,1751367042983,-580.25,0.0001879,2]
[368787083,1751367042994,-460.0,0.0001879,2]
[368787087,1751367043004,-460.0,0.0001879,2]
[368787091,1751367043013,-460.0,0.0001879,2]
[368787094,1751367043023,-460.0,0.00018791,2]
[368787097,1751367043032,-496.88,0.00018791,2]
[368787100,1751367043042,-460.0,0.00018791,2]
[368787103,1751367043052,-950.54,0.00018791,2]
[368787106,1751367043061,-460.0,0.00018791,2]
[368787109,1751367043070,-742.6949969,0.00018805,2]
[368787112,1751367043079,-770.17471178,0.0001886,2]
[368787115,1751367043089,-160.0,0.00018896,2]
[368787118,1751367043098,-557.35987639,0.000189,2]
[368787121,1751367043107,-557.35987638,0.000189,2]
[368787124,1751367043116,-557.35987638,0.000189,2]
[368787127,1751367043125,-557.35987638,0.000189,2]
[368787130,1751367043134,-1768.55558873,0.000189,2]
[368787133,1751367043144,-215.01728679,0.00018907,2]
[368787136,1751367043153,-230.32585361,0.00018907,2]
[368787139,1751367043162,-837.20943635,0.00018907,2]
[368787142,1751367043171,-160.0,0.00018907,2]
[368787145,1751367043180,-213.87551669,0.00018907,2]
[368787148,1751367043189,-160.0,0.00018907,2]
[368787151,1751367043198,-12571.40790328,0.00018907,2]
[368787154,1751367043208,-847.53272281,0.00018907,2]
[368787157,1751367043217,-2146.39634923,0.0001891,2]
[368787160,1751367043227,-798.67117612,0.00018915,2]
[368787163,1751367043236,-160.0,0.0001892,2]
[368787166,1751367043246,-160.0,0.0001892,2]
[368787168,1751367043256,-160.0,0.0001894,2]
[368787171,1751367043265,-160.0,0.0001894,2]
[368787174,1751367043274,-160.0,0.0001894,2]
[368787177,1751367043284,-160.0,0.0001894,2]
[368787180,1751367043293,-236.8426771,0.0001897,2]
[368787183,1751367043303,-9088.43575008,0.00019,2]
[368787186,1751367043312,-557.35987638,0.00019003,2]
[368787189,1751367043322,-460.0,0.00019029,2]
[368787192,1751367043331,-748.2,0.00019055,3]
[368787194,1751367043341,-788.88,0.00019055,3]
[368787196,1751367043350,-394.44,0.00019055,3]
[368787197,1751367043361,-683.93,0.00019063,2]
[368787199,1751367043371,-626.22,0.00019063,2]
[368787201,1751367043380,-460.0,0.00019063,2]
[368787204,1751367043391,-504.45,0.00019063,2]
[368787206,1751367043401,-460.0,0.00019063,2]
[368787208,1751367043411,-460.0,0.00019063,2]
[368787209,1751367043420,-460.0,0.00019063,2]
[368787211,1751367043430,-712.93,0.00019063,2]
[368787213,1751367043439,-460.0,0.00019064,2]
[368787215,1751367043448,-580.25,0.00019064,2]
[368787217,1751367043458,-460.0,0.00019064,2]
[368787219,1751367043468,-460.0,0.00019064,2]
[368787221,1751367043477,-460.0,0.00019064,2]
[368787223,1751367043487,-460.0,0.00019065,2]
[368787225,1751367043496,-460.0,0.00019065,2]
[368787227,1751367043505,-950.54,0.00019065,2]
[368787229,1751367043515,-460.0,0.00019065,2]
[368787231,1751367043525,-1509.1318264,0.00019081,2]
[368787233,1751367043535,-196.0915788,0.00019178,2]
[368787235,1751367043545,-242.010065,0.00019178,2]
[368787237,1751367043555,-25000.0,0.00019243,2]
[368787239,1751367043565,-420.0,0.00019274,2]
[368787241,1751367043574,-557.35987638,0.00019279,2]
[368787243,1751367043583,-248.22323485,0.0001928,2]
[368787245,1751367043593,-460.0,0.00019303,2]
[368787248,1751367043603,-2067.87134883,0.00019306,2]
[368787249,1751367043612,-2000.0,0.00019316,2]
[368787251,1751367043621,-23965.02039592,0.00019329,2]
[368787253,1751367043631,-64455.15551004,0.00019329,2]
[368787255,1751367043640,-100000.0,0.00019329,2]
[368787257,1751367043649,-683.93,0.00019337,2]
[368787259,1751367043659,-626.22,0.00019337,2]
[368787261,1751367043668,-460.0,0.00019337,2]
[368787263,1751367043678,-504.45,0.00019337,2]
[368787265,1751367043687,-460.0,0.00019337,2]
[368787267,1751367043696,-460.0,0.00019337,2]
[368787269,1751367043705,-460.0,0.00019337,2]
[368787271,1751367043715,-712.93,0.00019337,2]
[368787273,1751367043724,-460.0,0.00019338,2]
[368787275,1751367043734,-580.25,0.00019338,2]
[368787277,1751367043743,-460.0,0.00019338,2]
[368787279,1751367043753,-460.0,0.00019338,2]
[368787281,1751367043763,-460.0,0.00019338,2]
[368787283,1751367043772,-460.0,0.00019339,2]
[368787285,1751367043781,-460.0,0.00019339,2]
[368787287,1751367043790,-950.54,0.00019339,2]
[368787289,1751367043801,-460.0,0.00019339,2]
[368787291,1751367043810,-500.0,0.00019373,2]
[368787293,1751367043819,-500.0,0.00019373,2]
[368787295,1751367043829,-500.0,0.00019373,2]
[368787297,1751367043838,-161.05583858,0.00019373,2]
[368787299,1751367043847,-500.70631354,0.00019373,2]
[368787301,1751367043857,-500.0,0.00019373,2]
[368787303,1751367043866,-500.0,0.00019373,2]
[368787305,1751367043875,-500.42572882,0.00019373,2]
[368787307,1751367043885,-500.0,0.00019373,2]
[368787309,1751367043894,-500.40553689,0.00019373,2]
[368787311,1751367043904,-500.45460572,0.00019373,2]
[368787313,1751367043914,-500.0,0.00019373,2]
[368787315,1751367043923,-500.0,0.00019373,2]
[368787317,1751367043933,-500.0,0.00019373,2]
[368787319,1751367043942,-500.0,0.00019373,2]
[368787321,1751367043952,-500.0,0.00019373,2]
[368787323,1751367043961,-600.0,0.00019373,2]
[368787325,1751367043970,-500.35336161,0.00019373,2]
[368787327,1751367043979,-500.0,0.00019373,2]
[368787329,1751367043988,-172.32907732,0.00019373,2]
[368787331,1751367043997,-441.94601656,0.00019373,2]
[368787333,1751367044007,-500.0,0.00019373,2]
[368787335,1751367044017,-500.0,0.00019373,2]
[368787337,1751367044026,-153.32567748,0.00019373,2]
[368787339,1751367044037,-500.0,0.00019373,2]
[368787341,1751367044047,-360.00832558,0.00019373,2]
[368787344,1751367044065,-484.85022,0.00019373,2]
[368787346,1751367044076,-500.0,0.00019373,2]
[368787348,1751367044085,-500.0,0.00019373,2]
[368787350,1751367044095,-200.11115445,0.000195,2]
[368787352,1751367044104,-1155.64,0.000195,2]
[368787354,1751367044114,-557.35987638,0.00019555,2]
[368787356,1751367044123,-460.0,0.00019577,2]
[368787358,1751367044133,-683.93,0.00019611,2]
[368787360,1751367044142,-626.22,0.00019611,2]
[368787362,1751367044151,-460.0,0.00019611,2]
[368787364,1751367044161,-504.45,0.00019611,2]
[368787366,1751367044170,-460.0,0.00019611,2]
[368787368,1751367044179,-450.65,0.00019611,2]
[368787370,1751367044189,-460.0,0.00019611,2]
[368787372,1751367044199,-712.93,0.00019611,2]
[368787374,1751367044208,-460.0,0.00019612,2]
[368787376,1751367044218,-580.25,0.00019612,2]
[368787378,1751367044228,-460.0,0.00019612,2]
[368787380,1751367044238,-460.0,0.00019612,2]
[368787382,1751367044247,-460.0,0.00019612,2]
[368787385,1751367044258,-460.0,0.00019613,2]
[368787387,1751367044268,-460.0,0.00019613,2]
[368787389,1751367044278,-950.54,0.00019613,2]
[368787403,1751367044416,-460.0,0.00019613,2]
[368787405,1751367044426,-47653.41589309,0.0001966,2]
[368787445,1751367044804,-168.8179925,0.00017659,2]
[368787455,1751367044928,-291.1820075,0.00017659,2]
[368787456,1751367044938,-460.0,0.00017659,2]
[368787457,1751367044948,-281.35521654,0.00017659,2]
[368787458,1751367044957,-460.0,0.00017693,2]
[368787459,1751367044967,-379.98335315,0.00017694,2]
[368787460,1751367044977,-467.98,0.00017695,2]
[368787461,1751367044987,-460.0,0.00017933,2]
[368787462,1751367044999,-460.0,0.00018207,2]
[368787463,1751367045009,-460.0,0.00018481,2]
[368787464,1751367045018,-460.0,0.00018755,2]
[368787465,1751367045029,-460.0,0.0001879,2]
[368787466,1751367045038,-460.0,0.00019029,2]
[368787467,1751367045048,-460.0,0.00019064,2]
[368787468,1751367045058,-460.0,0.00019303,2]
[368787469,1751367045067,-460.0,0.00019338,2]
[368787470,1751367045076,-460.0,0.00019577,2]
[368787471,1751367045086,-460.0,0.00019612,2]
[368787472,1751367045095,-2346.58410691,0.0001966,2]
[368787473,1751367045105,-899.91531592,0.00019706,2]
[368787474,1751367045117,-550.37505742,0.00019706,2]
[368787475,1751367045128,-557.35987638,0.00019831,2]
[368787476,1751367045138,-460.0,0.00019851,2]
[368787477,1751367045148,-460.0,0.00019851,2]
[368787478,1751367045157,-2500.0,0.00019864,2]
[368787479,1751367045168,-626.22,0.00019885,2]
[368787480,1751367045177,-460.0,0.00019885,2]
[368787481,1751367045187,-504.45,0.00019885,2]
[368787483,1751367045196,-460.0,0.00019885,2]
[368787484,1751367045206,-460.0,0.00019885,2]
[368787485,1751367045215,-712.93,0.00019885,2]
[368787487,1751367045224,-460.0,0.00019886,2]
[368787489,1751367045233,-580.25,0.00019886,2]
[368787491,1751367045243,-460.0,0.00019886,2]
[368787493,1751367045252,-460.0,0.00019886,2]
[368787495,1751367045262,-416.56,0.00019886,2]
[368787497,1751367045271,-460.0,0.00019886,2]
[368787499,1751367045283,-460.0,0.00019887,2]
[368787501,1751367045294,-460.0,0.00019887,2]
[368787503,1751367045304,-950.54,0.00019887,2]
[368787505,1751367045313,-460.0,0.00019887,2]
[368787507,1751367045324,-1003.0446686,0.00019921,2]
[368787509,1751367045338,-1000.0,0.00019921,2]
[368787512,1751367045353,-1000.0,0.00019921,2]
[368787515,1751367045371,-1000.0,0.00019921,2]
[368787517,1751367045383,-1000.0,0.00019921,2]
[368787519,1751367045395,-1000.0,0.00019921,2]
[368787521,1751367045408,-1200.0,0.00019921,2]
[368787524,1751367045421,-155.15941754,0.00019921,2]
[368787526,1751367045435,-215.0738,0.00020064,2]
[368787528,1751367045447,-557.35987638,0.00020107,2]
[368787530,1751367045459,-460.0,0.00020125,2]
[368787533,1751367045472,-460.0,0.00020125,2]
[368787535,1751367045486,-626.22,0.00020159,2]
[368787537,1751367045498,-460.0,0.00020159,2]
[368787540,1751367045511,-504.45,0.00020159,2]
[368787542,1751367045523,-460.0,0.00020159,2]
[368787544,1751367045536,-460.0,0.00020159,2]
[368787547,1751367045549,-712.93,0.00020159,2]
[368787549,1751367045561,-460.0,0.0002016,2]
[368787551,1751367045573,-580.25,0.0002016,2]
[368787554,1751367045586,-460.0,0.0002016,2]
[368787556,1751367045597,-460.0,0.0002016,2]
[368787558,1751367045610,-460.0,0.0002016,2]
[368787561,1751367045623,-460.0,0.00020161,2]
[368787564,1751367045636,-460.0,0.00020161,2]
[368787567,1751367045648,-950.54,0.00020161,2]
[368787570,1751367045660,-460.0,0.00020161,2]
[368787573,1751367045671,-574.470206,0.00020187,2]
[368787577,1751367045681,-557.35987638,0.00020383,3]
[368787581,1751367045694,-460.0,0.00020399,2]
[368787584,1751367045704,-460.0,0.00020399,2]
[368787588,1751367045717,-3000.0,0.00020412,2]
[368787592,1751367045729,-626.22,0.00020433,2]
[368787596,1751367045743,-460.0,0.00020433,2]
[368787599,1751367045754,-504.45,0.00020433,2]
[368787602,1751367045767,-460.0,0.00020433,2]
[368787604,1751367045779,-183.97,0.00020433,2]
[368787606,1751367045792,-712.93,0.00020433,2]
[368787609,1751367045805,-460.0,0.00020434,2]
[368787611,1751367045816,-580.25,0.00020434,2]
[368787613,1751367045826,-460.0,0.00020434,2]
[368787615,1751367045836,-460.0,0.00020434,2]
[368787617,1751367045847,-460.0,0.00020434,2]
[368787619,1751367045857,-460.0,0.00020435,2]
[368787621,1751367045869,-391.64,0.00020435,2]
[368787624,1751367045883,-950.54,0.00020435,2]
[368787626,1751367045895,-460.0,0.00020435,2]
[368787629,1751367045908,-1500.0,0.00020468,2]
[368787631,1751367045919,-1046.33629541,0.00020468,2]
[368787633,1751367045929,-1800.0,0.00020468,2]
[368787635,1751367045940,-2067.87134883,0.00020471,2]
[368787637,1751367045952,-835.46,0.000206,2]
[368787639,1751367045964,-363.726,0.00020612,2]
[368787641,1751367045975,-557.35987638,0.00020659,3]
[368787643,1751367045986,-51868.49472921,0.0002066,2]
[368787646,1751367045997,-460.0,0.00020673,2]
[368787648,1751367046007,-460.0,0.00020673,2]
[368787650,1751367046019,-626.22,0.00020707,2]
[368787652,1751367046030,-460.0,0.00020707,2]
[368787654,1751367046041,-504.45,0.00020707,2]
[368787656,1751367046052,-460.0,0.00020707,2]
[368787659,1751367046064,-712.93,0.00020707,2]
[368787661,1751367046077,-460.0,0.00020708,2]
[368787663,1751367046087,-580.25,0.00020708,2]
[368787665,1751367046099,-460.0,0.00020708,2]
[368787667,1751367046110,-460.0,0.00020708,2]
[368787670,1751367046120,-460.0,0.00020708,2]
[368787673,1751367046144,-460.0,0.00020709,2]
[368787676,1751367046160,-950.54,0.00020709,2]
[368787678,1751367046175,-460.0,0.00020709,2]
[368787680,1751367046188,-1875.35,0.0002071,20]
[368787683,1751367046201,-1450.29037334,0.00020772,2]
[368787685,1751367046214,-557.35987638,0.00020934,4]
[368787688,1751367046227,-332.49,0.00020947,2]
[368787690,1751367046240,-460.0,0.00020947,2]
[368787692,1751367046253,-3500.0,0.0002096,2]
[368787695,1751367046266,-626.22,0.00020981,2]
[368787697,1751367046278,-460.0,0.00020981,2]
[368787699,1751367046291,-504.45,0.00020981,2]
[368787701,1751367046303,-460.0,0.00020981,2]
[368787704,1751367046316,-712.93,0.00020981,2]
[368787706,1751367046327,-460.0,0.00020982,2]
[368787708,1751367046339,-580.25,0.00020982,2]
[368787711,1751367046352,-460.0,0.00020982,2]
[368787713,1751367046370,-460.0,0.00020982,2]
[368787715,1751367046382,-460.0,0.00020982,2]
[368787717,1751367046397,-460.0,0.00020983,2]
[368787720,1751367046413,-950.54,0.00020983,2]
[368787722,1751367046425,-460.0,0.00020983,2]
[368787724,1751367046437,-4776.61087328,0.00021,2]
[368787726,1751367046449,-2005.38309226,0.00021016,2]
[368787728,1751367046459,-2400.0,0.00021016,2]
[368787730,1751367046469,-587.0,0.00021037,2]
[368787732,1751367046479,-557.35987638,0.0002121,4]
[368787734,1751367046489,-460.0,0.00021221,2]
[368787736,1751367046498,-626.22,0.00021255,2]
[368787739,1751367046509,-460.0,0.00021255,2]
[368787741,1751367046519,-504.45,0.00021255,2]
[368787743,1751367046528,-460.0,0.00021255,2]
[368787745,1751367046538,-712.93,0.00021255,2]
[368787747,1751367046550,-349.26,0.00021256,2]
[368787749,1751367046566,-460.0,0.00021256,2]
[368787751,1751367046582,-580.25,0.00021256,2]
[368787753,1751367046593,-460.0,0.00021256,2]
[368787755,1751367046602,-950.54,0.00021256,2]
[368787757,1751367046612,-537.19,0.00021256,2]
[368787759,1751367046621,-460.0,0.00021256,2]
[368787761,1751367046630,-460.0,0.00021256,2]
[368787763,1751367046640,-151.0,0.000214,4]
[368787765,1751367046650,-223.0315306,0.00021433,2]
[368787767,1751367046659,-557.35987638,0.00021486,5]
[368787769,1751367046670,-2249.11611796,0.00021508,2]
[368787771,1751367046679,-626.22,0.00021529,2]
[368787773,1751367046688,-460.0,0.00021529,2]
[368787793,1751367046867,-504.45,0.00021529,2]
[368787795,1751367046877,-460.0,0.00021529,2]
[368787797,1751367046887,-712.93,0.00021529,2]
[368787799,1751367046896,-460.0,0.0002153,2]
[368787801,1751367046905,-580.25,0.0002153,2]
[368787803,1751367046916,-460.0,0.0002153,2]
[368787805,1751367046925,-950.54,0.0002153,2]
[368787807,1751367046935,-177.63,0.0002153,2]
[368787809,1751367046945,-460.0,0.0002153,2]
[368787811,1751367046954,-966.0,0.00021557,2]
[368787813,1751367046963,-646.0,0.00021557,2]
[368787815,1751367046972,-2151.0,0.00021557,2]
[368787817,1751367046982,-3000.0,0.00021564,2]
[368787819,1751367046991,-151.0,0.000216,3]
[368787821,1751367047003,-2067.87134883,0.00021635,2]
[368787823,1751367047012,-557.35987638,0.00021762,5]
[368787825,1751367047021,-626.22,0.00021803,2]
[368787827,1751367047031,-480.97,0.00021803,2]
[368787829,1751367047040,-504.45,0.00021803,2]
[368787831,1751367047049,-460.0,0.00021803,2]
[368787833,1751367047059,-712.93,0.00021803,2]
[368787835,1751367047068,-460.0,0.00021804,2]
[368787837,1751367047077,-580.25,0.00021804,2]
[368787838,1751367047086,-460.0,0.00021804,2]
[368787840,1751367047097,-950.54,0.00021804,2]
[368787842,1751367047107,-460.0,0.00021804,2]
[368787844,1751367047117,-1450.29037334,0.00021838,2]
[368787846,1751367047127,-151.0,0.000219,4]
[368787848,1751367047136,-168.74373069,0.000219,2]
[368787850,1751367047146,-150.0,0.00021918,2]
[368787853,1751367047163,-150.0,0.00021973,2]
[368787855,1751367047173,-168.0,0.00021995,2]
[368787857,1751367047182,-1000.0,0.00022,2]
[368787859,1751367047192,-1000.0,0.00022,2]
[368787861,1751367047202,-1000.0,0.00022,2]
[368787863,1751367047212,-1000.0,0.00022,2]
[368787865,1751367047222,-1000.0,0.00022,2]
[368787867,1751367047232,-1000.0,0.00022,2]
[368787869,1751367047241,-1000.0,0.00022,2]
[368787871,1751367047251,-1000.0,0.00022,2]
[368787873,1751367047260,-1000.0,0.00022,2]
[368787875,1751367047270,-72791.63,0.00022,2]
[368787877,1751367047279,-167.0,0.00022,2]
[368787879,1751367047289,-401.0,0.00022,2]
[368787881,1751367047298,-557.35987638,0.00022038,6]
[368787883,1751367047308,-626.22,0.00022077,2]
[368787885,1751367047317,-504.45,0.00022077,2]
[368787887,1751367047327,-460.0,0.00022077,2]
[368787889,1751367047336,-712.93,0.00022077,2]
[368787891,1751367047346,-460.0,0.00022078,2]
[368787893,1751367047355,-580.25,0.00022078,2]
[368787895,1751367047369,-166.1,0.00022078,2]
[368787897,1751367047380,-950.54,0.00022078,2]
[368787900,1751367047390,-469.3,0.00022078,2]
[368787901,1751367047401,-54012.4,0.000221,7]
[368787903,1751367047412,-7652.89,0.000221,7]
[368787905,1751367047422,-835.46,0.000221,7]
[368787907,1751367047432,-12571.40790328,0.000221,7]
[368787909,1751367047442,-213.87551669,0.000221,7]
[368787911,1751367047453,-847.53272281,0.000221,7]
[368787913,1751367047462,-3600.0,0.00022112,2]
[368787915,1751367047472,-401.0,0.00022192,7]
[368787917,1751367047482,-179.58695001,0.00022243,2]
[368787919,1751367047491,-2200.0,0.00022287,2]